[Event "Titled Tuesday Blitz November 07 Late 2023"]
[White "JackRodgers"]
[Black "Brodsky, David"]
[BlackFideId "2073250"]
[WhiteElo "2519"]
[BlackElo "2803"]
[Result "0-1"]
[Round "6"]
[TimeControl "180+1"]
[Date "2023.11.07"]
[WhiteClock "0:00:03"]
[BlackClock "0:01:03"]
[Board "34"]

1. d4 {[%clk 0:03:00]}  Nf6 {[%clk 0:03:00]} 2. Bg5 {[%clk 0:03:00]}  Ne4 {[%clk 0:03:00]} 3. h4 {[%clk 0:03:00]}  d5 {[%clk 0:03:00]} 4. Nd2 {[%clk 0:02:59]}  Bf5 {[%clk 0:03:00]} 5. Nxe4 {[%clk 0:02:54]}  Bxe4 {[%clk 0:03:01]} 6. f3 {[%clk 0:02:54]}  h6 {[%clk 0:03:02]} 7. Bf4 {[%clk 0:02:54]}  Bh7 {[%clk 0:03:02]} 8. e3 {[%clk 0:02:52]}  e6 {[%clk 0:03:02]} 9. Bd3 {[%clk 0:02:51]}  Bxd3 {[%clk 0:03:02]} 10. Qxd3 {[%clk 0:02:52]}  c5 {[%clk 0:03:02]} 11. dxc5 {[%clk 0:02:43]}  Bxc5 {[%clk 0:02:48]} 12. Bxb8 {[%clk 0:02:36]}  Qa5+ {[%clk 0:02:47]} 13. c3 {[%clk 0:02:36]}  Rxb8 {[%clk 0:02:47]} 14. b4 {[%clk 0:02:33]}  Qb6 {[%clk 0:02:46]} 15. bxc5 {[%clk 0:02:31]}  Qb2 {[%clk 0:02:46]} 16. Rb1 {[%clk 0:02:23]}  Qxg2 {[%clk 0:02:45]} 17. c6 {[%clk 0:01:12]}  Qxh1 {[%clk 0:02:35]} 18. Kf1 {[%clk 0:00:57]}  O-O {[%clk 0:02:30]} 19. c7 {[%clk 0:00:51]}  Rbc8 {[%clk 0:02:29]} 20. Rxb7 {[%clk 0:00:51]}  Qh2 {[%clk 0:02:09]} 21. f4 {[%clk 0:00:48]}  Qxa2 {[%clk 0:02:08]} 22. Qd4 {[%clk 0:00:44]}  a5 {[%clk 0:02:05]} 23. Ne2 {[%clk 0:00:42]}  a4 {[%clk 0:01:54]} 24. Ra7 {[%clk 0:00:41]}  Qb3 {[%clk 0:01:50]} 25. Qxa4 {[%clk 0:00:30]}  Qxa4 {[%clk 0:01:49]} 26. Rxa4 {[%clk 0:00:31]}  Rxc7 {[%clk 0:01:49]} 27. Kf2 {[%clk 0:00:27]}  g6 {[%clk 0:01:45]} 28. Kf3 {[%clk 0:00:27]}  h5 {[%clk 0:01:46]} 29. e4 {[%clk 0:00:24]}  dxe4+ {[%clk 0:01:44]} 30. Kxe4 {[%clk 0:00:25]}  Rd8 {[%clk 0:01:42]} 31. Ke3 {[%clk 0:00:19]}  Kg7 {[%clk 0:01:42]} 32. Ke4 {[%clk 0:00:19]}  Kf6 {[%clk 0:01:41]} 33. Ke3 {[%clk 0:00:18]}  Rd5 {[%clk 0:01:37]} 34. Ke4 {[%clk 0:00:15]}  Rd6 {[%clk 0:01:34]} 35. Ke3 {[%clk 0:00:15]}  e5 {[%clk 0:01:31]} 36. fxe5+ {[%clk 0:00:14]}  Kxe5 {[%clk 0:01:32]} 37. Ra5+ {[%clk 0:00:14]}  Rd5 {[%clk 0:01:29]} 38. Ra4 {[%clk 0:00:14]}  f6 {[%clk 0:01:25]} 39. Re4+ {[%clk 0:00:12]}  Kd6 {[%clk 0:01:25]} 40. Ra4 {[%clk 0:00:10]}  g5 {[%clk 0:01:23]} 41. Kf2 {[%clk 0:00:04]}  Re5 {[%clk 0:01:15]} 42. Ra6+ {[%clk 0:00:01]}  Rc6 {[%clk 0:01:15]} 43. Rxc6+ {[%clk 0:00:01]}  Kxc6 {[%clk 0:01:15]} 44. Nd4+ {[%clk 0:00:02]}  Kd5 {[%clk 0:01:14]} 45. Nf3 {[%clk 0:00:03]}  Rf5 {[%clk 0:01:13]} 46. Ke3 {[%clk 0:00:03]}  Rxf3+ {[%clk 0:01:02]} 47. Kxf3 {[%clk 0:00:03]}  Kc4 {[%clk 0:01:03]} 0-1


[Site "https://www.chess.com"]

[Event "Titled Tuesday Blitz November 07 Late 2023"]
[White "Leitao, Rafael"]
[Black "Shapiro, Viktor"]
[WhiteFideId "2101246"]
[BlackFideId "4175700"]
[WhiteElo "2790"]
[BlackElo "2589"]
[Result "1-0"]
[Round "6"]
[TimeControl "180+1"]
[Date "2023.11.07"]
[WhiteClock "0:01:17"]
[BlackClock "0:00:33"]
[Board "39"]

1. c4 {[%clk 0:03:00]}  Nf6 {[%clk 0:03:00]} 2. Nc3 {[%clk 0:03:00]}  c5 {[%clk 0:03:01]} 3. g3 {[%clk 0:02:58]}  Nc6 {[%clk 0:03:01]} 4. Bg2 {[%clk 0:02:58]}  g6 {[%clk 0:03:02]} 5. Nf3 {[%clk 0:02:57]}  Bg7 {[%clk 0:03:03]} 6. O-O {[%clk 0:02:55]}  O-O {[%clk 0:03:03]} 7. d4 {[%clk 0:02:52]}  cxd4 {[%clk 0:03:01]} 8. Nxd4 {[%clk 0:02:52]}  Ng4 {[%clk 0:03:02]} 9. e3 {[%clk 0:02:52]}  d6 {[%clk 0:03:01]} 10. b3 {[%clk 0:02:45]}  Bd7 {[%clk 0:02:56]} 11. Bb2 {[%clk 0:02:44]}  a6 {[%clk 0:02:50]} 12. Qd2 {[%clk 0:02:40]}  Nxd4 {[%clk 0:02:44]} 13. exd4 {[%clk 0:02:38]}  Rb8 {[%clk 0:02:44]} 14. Rac1 {[%clk 0:02:23]}  b5 {[%clk 0:02:44]} 15. c5 {[%clk 0:02:18]}  b4 {[%clk 0:02:40]} 16. Nd5 {[%clk 0:02:07]}  Bb5 {[%clk 0:02:35]} 17. Rfd1 {[%clk 0:02:06]}  a5 {[%clk 0:02:35]} 18. c6 {[%clk 0:02:03]}  Rc8 {[%clk 0:02:34]} 19. c7 {[%clk 0:02:02]}  Qd7 {[%clk 0:02:27]} 20. Nb6 {[%clk 0:02:01]}  Qf5 {[%clk 0:02:26]} 21. Nxc8 {[%clk 0:02:00]}  Rxc8 {[%clk 0:02:26]} 22. Bb7 {[%clk 0:01:55]}  Bh6 {[%clk 0:01:47]} 23. f4 {[%clk 0:01:48]}  Bd7 {[%clk 0:01:35]} 24. Bxc8 {[%clk 0:01:45]}  Bxc8 {[%clk 0:01:35]} 25. d5 {[%clk 0:01:44]}  e5 {[%clk 0:01:20]} 26. dxe6 {[%clk 0:01:39]}  Qxe6 {[%clk 0:01:16]} 27. Re1 {[%clk 0:01:35]}  Qd7 {[%clk 0:01:13]} 28. Qd4 {[%clk 0:01:31]}  f6 {[%clk 0:01:07]} 29. Qd5+ {[%clk 0:01:24]}  Kf8 {[%clk 0:01:07]} 30. Qc6 {[%clk 0:01:19]}  Qxc6 {[%clk 0:00:33]} 31. Rxc6 {[%clk 0:01:17]} 1-0


[Site "https://www.chess.com"]

[Event "Titled Tuesday Blitz November 07 Late 2023"]
[White "Bordi, Kevin"]
[Black "Gontcharov, Vladislav"]
[WhiteFideId "621862"]
[BlackFideId "4123492"]
[WhiteElo "2783"]
[BlackElo "2576"]
[Result "0-1"]
[Round "6"]
[TimeControl "180+1"]
[Date "2023.11.07"]
[WhiteClock "0:02:36"]
[BlackClock "0:01:41"]
[Board "40"]

1. d4 {[%clk 0:02:57]}  Nf6 {[%clk 0:02:57]} 2. Bg5 {[%clk 0:02:57]}  e6 {[%clk 0:02:56]} 3. e4 {[%clk 0:02:57]}  h6 {[%clk 0:02:55]} 4. Bxf6 {[%clk 0:02:46]}  Qxf6 {[%clk 0:02:54]} 5. c3 {[%clk 0:02:46]}  Qd8 {[%clk 0:02:53]} 6. f4 {[%clk 0:02:44]}  d5 {[%clk 0:02:53]} 7. e5 {[%clk 0:02:43]}  c5 {[%clk 0:02:53]} 8. Nf3 {[%clk 0:02:44]}  Qb6 {[%clk 0:02:51]} 9. Qb3 {[%clk 0:02:44]}  Bd7 {[%clk 0:02:48]} 10. Nbd2 {[%clk 0:02:43]}  Nc6 {[%clk 0:02:43]} 11. Be2 {[%clk 0:02:43]}  cxd4 {[%clk 0:02:20]} 12. Qxb6 {[%clk 0:02:41]}  axb6 {[%clk 0:02:20]} 13. Nxd4 {[%clk 0:02:42]}  Nxd4 {[%clk 0:02:17]} 14. cxd4 {[%clk 0:02:42]}  Bb4 {[%clk 0:02:16]} 15. a3 {[%clk 0:02:43]}  Ke7 {[%clk 0:02:15]} 16. O-O-O {[%clk 0:02:42]}  Rhc8+ {[%clk 0:01:56]} 17. Kb1 {[%clk 0:02:42]}  Ba4 {[%clk 0:01:56]} 18. axb4 {[%clk 0:02:41]}  Bc2+ {[%clk 0:01:56]} 19. Kc1 {[%clk 0:02:39]}  Ra1+ {[%clk 0:01:48]} 20. Nb1 {[%clk 0:02:39]}  Rxb1+ {[%clk 0:01:46]} 21. Kd2 {[%clk 0:02:39]}  Bxd1 {[%clk 0:01:45]} 22. Bxd1 {[%clk 0:02:40]}  Rxb2+ {[%clk 0:01:45]} 23. Ke3 {[%clk 0:02:40]}  Rxb4 {[%clk 0:01:45]} 24. Kd3 {[%clk 0:02:37]}  Rb1 {[%clk 0:01:42]} 25. Re1 {[%clk 0:02:36]}  Rcc1 {[%clk 0:01:41]} 26. Kd2 {[%clk 0:02:36]}  b5 {[%clk 0:01:41]} 27. g4 {[%clk 0:02:36]}  b4 {[%clk 0:01:41]} 28. h4 {[%clk 0:02:36]}  b3 {[%clk 0:01:42]} 29. f5 {[%clk 0:02:36]}  b2 {[%clk 0:01:41]} 0-1


[Site "https://www.chess.com"]

[Event "Titled Tuesday Blitz November 07 Late 2023"]
[White "Gimenez Aguirre, Alejo Ismael"]
[Black "Hambleton, Aman"]
[WhiteFideId "32041667"]
[BlackFideId "2606577"]
[WhiteElo "2576"]
[BlackElo "2743"]
[Result "0-1"]
[Round "6"]
[TimeControl "180+1"]
[Date "2023.11.07"]
[WhiteClock "0:00:12"]
[BlackClock "0:00:03"]
[Board "41"]

1. e4 {[%clk 0:03:00]}  c5 {[%clk 0:02:58]} 2. Nf3 {[%clk 0:03:01]}  e6 {[%clk 0:02:59]} 3. d4 {[%clk 0:03:00]}  cxd4 {[%clk 0:02:59]} 4. Nxd4 {[%clk 0:03:01]}  Nc6 {[%clk 0:03:00]} 5. Nxc6 {[%clk 0:03:01]}  bxc6 {[%clk 0:03:01]} 6. Bd3 {[%clk 0:03:02]}  d5 {[%clk 0:03:01]} 7. O-O {[%clk 0:03:02]}  Bd6 {[%clk 0:02:58]} 8. c4 {[%clk 0:03:02]}  Nf6 {[%clk 0:01:46]} 9. exd5 {[%clk 0:03:01]}  cxd5 {[%clk 0:01:38]} 10. cxd5 {[%clk 0:03:02]}  Nxd5 {[%clk 0:01:37]} 11. Be4 {[%clk 0:02:33]}  Bxh2+ {[%clk 0:00:42]} 12. Kxh2 {[%clk 0:02:29]}  Qh4+ {[%clk 0:00:42]} 13. Kg1 {[%clk 0:02:29]}  Qxe4 {[%clk 0:00:43]} 14. Re1 {[%clk 0:02:29]}  Qc4 {[%clk 0:00:17]} 15. Nd2 {[%clk 0:02:29]}  Qd3 {[%clk 0:00:13]} 16. Qg4 {[%clk 0:02:26]}  O-O {[%clk 0:00:05]} 17. Nf3 {[%clk 0:02:22]}  Qg6 {[%clk 0:00:03]} 18. Qh4 {[%clk 0:02:21]}  f6 {[%clk 0:00:02]} 19. b3 {[%clk 0:02:11]}  e5 {[%clk 0:00:02]} 20. Ba3 {[%clk 0:02:08]}  Re8 {[%clk 0:00:03]} 21. Rad1 {[%clk 0:02:08]}  Be6 {[%clk 0:00:03]} 22. Nh2 {[%clk 0:01:33]}  Rac8 {[%clk 0:00:01]} 23. Rd3 {[%clk 0:01:32]}  Nf4 {[%clk 0:00:01]} 24. Rg3 {[%clk 0:01:31]}  Qh5 {[%clk 0:00:01]} 25. Qxf6 {[%clk 0:01:18]}  Ng6 {[%clk 0:00:02]} 26. Qf3 {[%clk 0:01:13]}  Qxf3 {[%clk 0:00:02]} 27. Nxf3 {[%clk 0:01:14]}  Bd5 {[%clk 0:00:02]} 28. Re2 {[%clk 0:01:03]}  e4 {[%clk 0:00:02]} 29. Nd4 {[%clk 0:01:00]}  Nf4 {[%clk 0:00:02]} 30. Rd2 {[%clk 0:01:00]}  Rc7 {[%clk 0:00:01]} 31. Kh2 {[%clk 0:00:57]}  Nd3 {[%clk 0:00:02]} 32. Nf5 {[%clk 0:00:52]}  Re5 {[%clk 0:00:01]} 33. Bd6 {[%clk 0:00:44]}  Rxf5 {[%clk 0:00:02]} 34. Bxc7 {[%clk 0:00:45]}  Nxf2 {[%clk 0:00:03]} 35. Kg1 {[%clk 0:00:34]}  Nd3 {[%clk 0:00:02]} 36. Ba5 {[%clk 0:00:29]}  h5 {[%clk 0:00:02]} 37. Bc3 {[%clk 0:00:29]}  g5 {[%clk 0:00:02]} 38. Bd4 {[%clk 0:00:25]}  a6 {[%clk 0:00:02]} 39. Be3 {[%clk 0:00:24]}  g4 {[%clk 0:00:03]} 40. Rc2 {[%clk 0:00:22]}  Be6 {[%clk 0:00:02]} 41. Bd4 {[%clk 0:00:21]}  Rd5 {[%clk 0:00:02]} 42. Ba1 {[%clk 0:00:17]}  Nf4 {[%clk 0:00:01]} 43. Re3 {[%clk 0:00:15]}  Bf5 {[%clk 0:00:02]} 44. Rc8+ {[%clk 0:00:14]}  Kf7 {[%clk 0:00:02]} 45. Rc7+ {[%clk 0:00:15]}  Ke6 {[%clk 0:00:02]} 46. Rec3 {[%clk 0:00:14]}  Ne2+ {[%clk 0:00:01]} 47. Kf2 {[%clk 0:00:14]}  Nxc3 {[%clk 0:00:02]} 48. Bxc3 {[%clk 0:00:14]}  Rd3 {[%clk 0:00:02]} 49. Rc6+ {[%clk 0:00:14]}  Kd5 {[%clk 0:00:02]} 50. Rc4 {[%clk 0:00:13]}  g3+ {[%clk 0:00:02]} 51. Ke2 {[%clk 0:00:13]}  Bg4+ {[%clk 0:00:03]} 52. Ke1 {[%clk 0:00:12]}  Rd1# {[%clk 0:00:03]} 0-1


[Site "https://www.chess.com"]

[Event "Titled Tuesday Blitz November 07 Late 2023"]
[White "Goltsev, Dmitry"]
[Black "Streltsov, Alexey"]
[WhiteFideId "24176710"]
[BlackFideId "24104434"]
[WhiteElo "2734"]
[BlackElo "2569"]
[Result "1-0"]
[Round "6"]
[TimeControl "180+1"]
[Date "2023.11.07"]
[WhiteClock "0:00:11"]
[BlackClock "0:00:09"]
[Board "42"]

1. e4 {[%clk 0:03:00]}  c6 {[%clk 0:03:00]} 2. d4 {[%clk 0:03:00]}  d5 {[%clk 0:03:00]} 3. Nc3 {[%clk 0:03:01]}  dxe4 {[%clk 0:03:01]} 4. Nxe4 {[%clk 0:03:02]}  Nf6 {[%clk 0:03:01]} 5. Ng3 {[%clk 0:03:00]}  h5 {[%clk 0:03:01]} 6. h4 {[%clk 0:03:00]}  Bg4 {[%clk 0:02:59]} 7. Be2 {[%clk 0:03:00]}  Nbd7 {[%clk 0:02:58]} 8. Nf3 {[%clk 0:02:57]}  Qc7 {[%clk 0:02:54]} 9. c3 {[%clk 0:02:56]}  O-O-O {[%clk 0:02:50]} 10. Ng5 {[%clk 0:02:55]}  Be6 {[%clk 0:02:27]} 11. Nxe6 {[%clk 0:02:54]}  fxe6 {[%clk 0:02:28]} 12. Be3 {[%clk 0:02:44]}  e5 {[%clk 0:02:28]} 13. Qa4 {[%clk 0:02:41]}  exd4 {[%clk 0:02:12]} 14. Bxd4 {[%clk 0:02:39]}  c5 {[%clk 0:02:09]} 15. Bxf6 {[%clk 0:02:35]}  exf6 {[%clk 0:02:09]} 16. Qxa7 {[%clk 0:02:36]}  Bd6 {[%clk 0:02:07]} 17. O-O-O {[%clk 0:02:23]}  Bxg3 {[%clk 0:01:55]} 18. fxg3 {[%clk 0:02:23]}  Ne5 {[%clk 0:01:50]} 19. Rxd8+ {[%clk 0:02:12]}  Rxd8 {[%clk 0:01:51]} 20. Qa8+ {[%clk 0:02:12]}  Qb8 {[%clk 0:01:48]} 21. Qxb8+ {[%clk 0:02:12]}  Kxb8 {[%clk 0:01:49]} 22. Bxh5 {[%clk 0:02:12]}  Rd3 {[%clk 0:01:46]} 23. g4 {[%clk 0:01:51]}  g6 {[%clk 0:01:24]} 24. Bxg6 {[%clk 0:01:51]}  Nxg6 {[%clk 0:01:25]} 25. h5 {[%clk 0:01:51]}  Nf8 {[%clk 0:01:26]} 26. Re1 {[%clk 0:01:50]}  Kc7 {[%clk 0:01:24]} 27. Re7+ {[%clk 0:01:39]}  Rd7 {[%clk 0:01:23]} 28. Re8 {[%clk 0:01:40]}  Nh7 {[%clk 0:01:22]} 29. a4 {[%clk 0:01:36]}  Rg7 {[%clk 0:01:19]} 30. h6 {[%clk 0:01:36]}  Rf7 {[%clk 0:01:14]} 31. Kc2 {[%clk 0:01:34]}  Ng5 {[%clk 0:01:15]} 32. Rg8 {[%clk 0:01:23]}  Rh7 {[%clk 0:01:15]} 33. Rg7+ {[%clk 0:01:19]}  Kc6 {[%clk 0:01:15]} 34. Rg6 {[%clk 0:01:13]}  Ne4 {[%clk 0:01:10]} 35. Kd3 {[%clk 0:01:05]}  Kd5 {[%clk 0:01:10]} 36. b3 {[%clk 0:00:43]}  Ke5 {[%clk 0:00:48]} 37. Rg7 {[%clk 0:00:38]}  Ng5 {[%clk 0:00:49]} 38. Rxh7 {[%clk 0:00:25]}  Nxh7 {[%clk 0:00:49]} 39. b4 {[%clk 0:00:26]}  Kd5 {[%clk 0:00:41]} 40. b5 {[%clk 0:00:17]}  b6 {[%clk 0:00:37]} 41. c4+ {[%clk 0:00:16]}  Ke5 {[%clk 0:00:38]} 42. Ke3 {[%clk 0:00:16]}  Ng5 {[%clk 0:00:37]} 43. g3 {[%clk 0:00:14]}  Nh7 {[%clk 0:00:36]} 44. Kd3 {[%clk 0:00:14]}  Ng5 {[%clk 0:00:37]} 45. Kc3 {[%clk 0:00:14]}  Kd6 {[%clk 0:00:20]} 46. Kd3 {[%clk 0:00:14]}  Ke6 {[%clk 0:00:20]} 47. Kc3 {[%clk 0:00:14]}  Kd6 {[%clk 0:00:19]} 48. Kb3 {[%clk 0:00:14]}  Nh7 {[%clk 0:00:18]} 49. a5 {[%clk 0:00:13]}  bxa5 {[%clk 0:00:17]} 50. Ka4 {[%clk 0:00:14]}  Kc7 {[%clk 0:00:16]} 51. Kxa5 {[%clk 0:00:14]}  Ng5 {[%clk 0:00:14]} 52. b6+ {[%clk 0:00:13]}  Kb7 {[%clk 0:00:15]} 53. Kb5 {[%clk 0:00:13]}  Ne4 {[%clk 0:00:10]} 54. h7 {[%clk 0:00:11]}  Nxg3 {[%clk 0:00:10]} 55. h8=Q {[%clk 0:00:11]}  Ne4 {[%clk 0:00:09]} 56. Qg7+ {[%clk 0:00:11]} 1-0


[Site "https://www.chess.com"]

[Event "Titled Tuesday Blitz November 07 Late 2023"]
[White "Pakleza, Zbigniew"]
[Black "a-z30"]
[WhiteFideId "1119290"]
[WhiteElo "2708"]
[BlackElo "2538"]
[Result "1-0"]
[Round "6"]
[TimeControl "180+1"]
[Date "2023.11.07"]
[WhiteClock "0:00:34"]
[BlackClock "0:00:00"]
[Board "45"]

1. d4 {[%clk 0:03:00]}  Nf6 {[%clk 0:02:59]} 2. Nf3 {[%clk 0:03:01]}  e6 {[%clk 0:02:59]} 3. Bf4 {[%clk 0:03:01]}  Bd6 {[%clk 0:02:58]} 4. Bxd6 {[%clk 0:02:58]}  cxd6 {[%clk 0:02:58]} 5. e3 {[%clk 0:02:59]}  d5 {[%clk 0:02:57]} 6. Nbd2 {[%clk 0:02:59]}  Nc6 {[%clk 0:02:57]} 7. Be2 {[%clk 0:02:57]}  O-O {[%clk 0:02:54]} 8. O-O {[%clk 0:02:57]}  a6 {[%clk 0:02:53]} 9. c4 {[%clk 0:02:55]}  dxc4 {[%clk 0:02:44]} 10. Nxc4 {[%clk 0:02:56]}  b5 {[%clk 0:02:35]} 11. Nce5 {[%clk 0:02:47]}  Bb7 {[%clk 0:02:29]} 12. a4 {[%clk 0:02:46]}  d6 {[%clk 0:02:21]} 13. Nd3 {[%clk 0:02:40]}  bxa4 {[%clk 0:02:12]} 14. Qxa4 {[%clk 0:02:37]}  a5 {[%clk 0:02:04]} 15. Rfc1 {[%clk 0:02:33]}  Qb6 {[%clk 0:02:03]} 16. Nd2 {[%clk 0:02:29]}  Rfc8 {[%clk 0:01:37]} 17. Nc4 {[%clk 0:02:20]}  Qd8 {[%clk 0:01:37]} 18. Qa3 {[%clk 0:02:17]}  Nb4 {[%clk 0:01:16]} 19. Nxb4 {[%clk 0:02:06]}  axb4 {[%clk 0:01:17]} 20. Qxb4 {[%clk 0:02:06]}  Rxa1 {[%clk 0:01:18]} 21. Rxa1 {[%clk 0:02:06]}  d5 {[%clk 0:00:38]} 22. Nd6 {[%clk 0:01:27]}  Ra8 {[%clk 0:00:34]} 23. Rc1 {[%clk 0:01:28]}  Bc8 {[%clk 0:00:17]} 24. h3 {[%clk 0:01:13]}  Bd7 {[%clk 0:00:17]} 25. Qc5 {[%clk 0:00:54]}  Rb8 {[%clk 0:00:16]} 26. b4 {[%clk 0:00:53]}  Ne8 {[%clk 0:00:12]} 27. b5 {[%clk 0:00:42]}  Nxd6 {[%clk 0:00:09]} 28. Qxd6 {[%clk 0:00:43]}  g6 {[%clk 0:00:04]} 29. Rc7 {[%clk 0:00:35]}  Be8 {[%clk 0:00:01]} 30. Qxd8 {[%clk 0:00:35]}  Rxd8 {[%clk 0:00:02]} 31. b6 {[%clk 0:00:36]}  Rb8 {[%clk 0:00:02]} 32. b7 {[%clk 0:00:36]}  Kf8 {[%clk 0:00:01]} 33. Ba6 {[%clk 0:00:34]}  Ba4 {[%clk 0:00:00]} 34. Rc8+ {[%clk 0:00:34]} 1-0


[Site "https://www.chess.com"]

[Event "Titled Tuesday Blitz November 07 Late 2023"]
[White "Hasangatin, Ramil"]
[Black "Santos Flores, Alberto"]
[WhiteFideId "4122160"]
[BlackFideId "3601234"]
[WhiteElo "2699"]
[BlackElo "2532"]
[Result "0-1"]
[Round "6"]
[TimeControl "180+1"]
[Date "2023.11.07"]
[WhiteClock "0:00:00"]
[BlackClock "0:00:14"]
[Board "46"]

1. e4 {[%clk 0:03:00]}  e6 {[%clk 0:02:59]} 2. d3 {[%clk 0:03:00]}  d5 {[%clk 0:02:59]} 3. Qe2 {[%clk 0:03:01]}  dxe4 {[%clk 0:02:55]} 4. dxe4 {[%clk 0:03:01]}  e5 {[%clk 0:02:55]} 5. Nf3 {[%clk 0:03:02]}  Nc6 {[%clk 0:02:55]} 6. c3 {[%clk 0:03:03]}  a5 {[%clk 0:02:55]} 7. Qc2 {[%clk 0:03:03]}  Bc5 {[%clk 0:02:54]} 8. Bb5 {[%clk 0:03:04]}  Qe7 {[%clk 0:02:53]} 9. Bxc6+ {[%clk 0:02:58]}  bxc6 {[%clk 0:02:53]} 10. O-O {[%clk 0:02:59]}  Nf6 {[%clk 0:02:53]} 11. Bg5 {[%clk 0:02:57]}  h6 {[%clk 0:02:52]} 12. Bh4 {[%clk 0:02:57]}  g5 {[%clk 0:02:35]} 13. Bg3 {[%clk 0:02:57]}  Bd6 {[%clk 0:02:35]} 14. Nbd2 {[%clk 0:02:52]}  h5 {[%clk 0:02:35]} 15. h4 {[%clk 0:02:47]}  gxh4 {[%clk 0:02:31]} 16. Nxh4 {[%clk 0:02:43]}  Rg8 {[%clk 0:02:25]} 17. Nc4 {[%clk 0:02:40]}  Ba6 {[%clk 0:02:19]} 18. Nf5 {[%clk 0:02:25]}  Qe6 {[%clk 0:02:18]} 19. Ncxd6+ {[%clk 0:02:24]}  cxd6 {[%clk 0:02:18]} 20. Rfd1 {[%clk 0:02:23]}  Rd8 {[%clk 0:01:59]} 21. Bh4 {[%clk 0:02:10]}  Rd7 {[%clk 0:01:27]} 22. Qa4 {[%clk 0:02:05]}  Be2 {[%clk 0:01:09]} 23. Rd2 {[%clk 0:02:01]}  Bf3 {[%clk 0:01:09]} 24. Ng3 {[%clk 0:01:56]}  Rg4 {[%clk 0:00:55]} 25. gxf3 {[%clk 0:01:44]}  Rxh4 {[%clk 0:00:54]} 26. Nf5 {[%clk 0:01:41]}  Nxe4 {[%clk 0:00:33]} 27. fxe4 {[%clk 0:01:36]}  Qxf5 {[%clk 0:00:32]} 28. exf5 {[%clk 0:01:31]}  Rxa4 {[%clk 0:00:33]} 29. b3 {[%clk 0:01:12]}  Rf4 {[%clk 0:00:32]} 30. a4 {[%clk 0:01:11]}  Rxf5 {[%clk 0:00:32]} 31. b4 {[%clk 0:01:12]}  d5 {[%clk 0:00:28]} 32. b5 {[%clk 0:01:10]}  c5 {[%clk 0:00:26]} 33. Rad1 {[%clk 0:01:02]}  d4 {[%clk 0:00:25]} 34. c4 {[%clk 0:01:02]}  Rf3 {[%clk 0:00:21]} 35. Rb2 {[%clk 0:00:59]}  Rb7 {[%clk 0:00:20]} 36. b6 {[%clk 0:00:58]}  Kd7 {[%clk 0:00:20]} 37. Rb5 {[%clk 0:00:58]}  Kc6 {[%clk 0:00:20]} 38. Rdb1 {[%clk 0:00:58]}  Rc3 {[%clk 0:00:20]} 39. Rxa5 {[%clk 0:00:54]}  Rxc4 {[%clk 0:00:20]} 40. Ra6 {[%clk 0:00:52]}  e4 {[%clk 0:00:20]} 41. a5 {[%clk 0:00:53]}  Ra4 {[%clk 0:00:18]} 42. Ra8 {[%clk 0:00:52]}  d3 {[%clk 0:00:18]} 43. Rc8+ {[%clk 0:00:44]}  Kd7 {[%clk 0:00:18]} 44. Rxc5 {[%clk 0:00:44]}  Rd4 {[%clk 0:00:15]} 45. Kf1 {[%clk 0:00:36]}  Kd6 {[%clk 0:00:13]} 46. Rc8 {[%clk 0:00:33]}  Ra4 {[%clk 0:00:11]} 47. Ra8 {[%clk 0:00:25]}  Kc6 {[%clk 0:00:12]} 48. Rc1+ {[%clk 0:00:19]}  Kd6 {[%clk 0:00:12]} 49. Rb1 {[%clk 0:00:12]}  Kc6 {[%clk 0:00:12]} 50. Rc8+ {[%clk 0:00:11]}  Kd7 {[%clk 0:00:12]} 51. Rc5 {[%clk 0:00:11]}  Kd6 {[%clk 0:00:12]} 52. Rcb5 {[%clk 0:00:09]}  Kc6 {[%clk 0:00:10]} 53. R5b4 {[%clk 0:00:08]}  Rxa5 {[%clk 0:00:09]} 54. Rxe4 {[%clk 0:00:08]}  Rxb6 {[%clk 0:00:09]} 55. Rc4+ {[%clk 0:00:08]}  Kb7 {[%clk 0:00:09]} 56. Rd1 {[%clk 0:00:07]}  Rd5 {[%clk 0:00:09]} 57. Rf4 {[%clk 0:00:06]}  f6 {[%clk 0:00:09]} 58. Rh4 {[%clk 0:00:05]}  Re6 {[%clk 0:00:08]} 59. Rb4+ {[%clk 0:00:04]}  Kc7 {[%clk 0:00:09]} 60. Rc1+ {[%clk 0:00:04]}  Kd7 {[%clk 0:00:09]} 61. Rb7+ {[%clk 0:00:05]}  Kd6 {[%clk 0:00:09]} 62. Rb6+ {[%clk 0:00:03]}  Ke7 {[%clk 0:00:10]} 63. Rb7+ {[%clk 0:00:04]}  Rd7 {[%clk 0:00:10]} 64. Rxd7+ {[%clk 0:00:04]}  Kxd7 {[%clk 0:00:10]} 65. Rd1 {[%clk 0:00:04]}  Rd6 {[%clk 0:00:10]} 66. Ke1 {[%clk 0:00:05]}  Ke6 {[%clk 0:00:11]} 67. Kd2 {[%clk 0:00:05]}  Kf5 {[%clk 0:00:11]} 68. Rh1 {[%clk 0:00:05]}  Kg4 {[%clk 0:00:11]} 69. Rg1+ {[%clk 0:00:05]}  Kf3 {[%clk 0:00:11]} 70. Rh1 {[%clk 0:00:05]}  Kxf2 {[%clk 0:00:11]} 71. Rxh5 {[%clk 0:00:05]}  Kf3 {[%clk 0:00:11]} 72. Rh3+ {[%clk 0:00:05]}  Ke4 {[%clk 0:00:12]} 73. Re3+ {[%clk 0:00:04]}  Kf4 {[%clk 0:00:12]} 74. Re1 {[%clk 0:00:03]}  f5 {[%clk 0:00:12]} 75. Rf1+ {[%clk 0:00:04]}  Ke4 {[%clk 0:00:12]} 76. Re1+ {[%clk 0:00:04]}  Kf3 {[%clk 0:00:13]} 77. Rf1+ {[%clk 0:00:04]}  Kg4 {[%clk 0:00:13]} 78. Rg1+ {[%clk 0:00:04]}  Kf4 {[%clk 0:00:13]} 79. Rf1+ {[%clk 0:00:05]}  Kg5 {[%clk 0:00:14]} 80. Rg1+ {[%clk 0:00:05]}  Kf6 {[%clk 0:00:14]} 81. Rf1 {[%clk 0:00:05]}  Rd4 {[%clk 0:00:13]} 82. Ke3 {[%clk 0:00:05]}  Ke5 {[%clk 0:00:13]} 83. Kd2 {[%clk 0:00:02]}  f4 {[%clk 0:00:14]} 84. Re1+ {[%clk 0:00:03]}  Kf5 {[%clk 0:00:14]} 85. Re8 {[%clk 0:00:03]}  f3 {[%clk 0:00:13]} 86. Rf8+ {[%clk 0:00:04]}  Kg4 {[%clk 0:00:13]} 87. Ke3 {[%clk 0:00:04]}  d2 {[%clk 0:00:13]} 88. Rg8+ {[%clk 0:00:03]}  Kf5 {[%clk 0:00:13]} 89. Kxd4 {[%clk 0:00:02]}  d1=Q+ {[%clk 0:00:13]} 90. Ke3 {[%clk 0:00:03]}  Qe2+ {[%clk 0:00:13]} 91. Kd4 {[%clk 0:00:04]}  f2 {[%clk 0:00:13]} 92. Rf8+ {[%clk 0:00:03]}  Kg6 {[%clk 0:00:13]} 93. Rg8+ {[%clk 0:00:04]}  Kf7 {[%clk 0:00:13]} 94. Rf8+ {[%clk 0:00:00]}  Kxf8 {[%clk 0:00:14]} 0-1


[Site "https://www.chess.com"]